fUSD/lending_fUSD_20251130
["ID","MTS","AMOUNT","RATE_DAILY","PERIOD"]
[395145836,1764477439534,204.56,7.301e-05,2]
[395145837,1764477439759,204.56,7.685e-05,2]
[395145838,1764477439930,-230.28853211,0.00013172,2]
[395145839,1764477439984,204.56,8.07e-05,2]
[395145840,1764477440154,204.56,8.454e-05,2]
[395145841,1764477440358,204.56,8.838e-05,2]
[395145842,1764477440552,204.56,9.222e-05,2]
[395145843,1764477440781,204.56,9.607e-05,2]
[395145844,1764477441004,204.56,9.991e-05,2]
[395145845,1764477441216,204.56,0.00010375,2]
[395145846,1764477441439,204.56,0.0001076,2]
[395145847,1764477441512,4789.34093491,0.00013072,2]
[395145848,1764477441536,2955.466739,0.00013072,2]
[395145849,1764477441647,204.56,0.00011144,2]
[395145850,1764477441858,204.56,0.00011528,2]
[395145851,1764477441897,-300.0,0.00013172,2]
[395145852,1764477442052,204.56,0.00011912,2]
[395145853,1764477442777,204.56,0.00012297,2]
[395145854,1764477442859,204.56,0.00012681,2]
[395145855,1764477442909,204.56,0.00013065,2]
[395145856,1764477445112,-300.0,0.00013172,2]
[395145857,1764477447120,-195.0,0.00013172,2]
[395145858,1764477447335,5817.183261,0.00013072,2]
[395145859,1764477447357,10000.01,0.00013072,2]
[395145860,1764477447377,3882.826739,0.00013072,2]
[395145861,1764477449726,-548.96763811,0.00013172,2]
[395145862,1764477451682,-249.54801596,0.00013172,2]
[395145863,1764477453678,-232.09839468,0.00013172,2]
[395145864,1764477456191,-302.0,0.00013172,2]
[395145865,1764477457205,-350.0,0.00013172,2]
[395145866,1764477458706,-307.76491571,0.00013172,2]
[395145867,1764477460794,-300.0,0.00013172,2]
[395145868,1764477463053,-155.06391425,0.00013172,2]
[395145869,1764477463520,500.0,0.00013171,2]
[395145870,1764477463570,500.0,0.00013171,2]
[395145871,1764477463611,500.0,0.00013171,2]
[395145872,1764477463656,500.0,0.00013171,2]
[395145873,1764477463696,500.0,0.00013171,2]
[395145874,1764477463736,500.0,0.00013171,2]
[395145875,1764477463791,500.0,0.00013171,2]
[395145876,1764477463856,500.0,0.00013171,2]
[395145877,1764477463902,500.0,0.00013171,2]
[395145878,1764477463946,500.0,0.00013171,2]
[395145879,1764477463991,500.0,0.00013171,2]
[395145880,1764477464032,500.0,0.00013171,2]
[395145881,1764477464083,117.183261,0.00013171,2]
[395145882,1764477464111,382.816739,0.00013171,2]
[395145883,1764477464156,250.0,0.00013171,2]
[395145884,1764477465922,151.0,0.00013172,2]
[395145885,1764477467650,-293.43049039,0.00013172,2]
[395145886,1764477467714,151.0,0.00013172,2]
[395145887,1764477467817,151.0,0.00013172,2]
[395145888,1764477467903,151.0,0.00013172,2]
[395145889,1764477468504,151.0,0.00013172,2]
[395145890,1764477469127,151.0,0.00013172,2]
[395145891,1764477469734,160.82386666,0.00013172,2]
[395145892,1764477469938,-500.0,0.00013172,2]
[395145893,1764477471747,-385.59247409,0.00013172,2]
[395145894,1764477473770,-186.10002422,0.00013172,2]
[395145909,1764477475738,-408.38485125,0.00013172,2]
[395145915,1764477477422,500.0,0.00013171,2]
[395145916,1764477477565,500.0,0.00013171,2]
[395145917,1764477478574,-349.68414304,0.00013172,2]
[395145918,1764477480188,-158.21882185,0.00013172,2]
[395145919,1764477481624,-391.0781462,0.00013172,2]
[395145920,1764477485999,-289.2812312,0.00013172,2]
[395145921,1764477489602,-281.72570416,0.00013172,2]
[395145922,1764477490658,-198.8917248,0.00013172,2]
[395145926,1764477492628,-244.98932179,0.00013172,2]
[395145927,1764477494624,-341.26436306,0.00013172,2]
[395145928,1764477496070,-269.71146789,0.00013172,2]
[395145929,1764477496289,2949.634,0.00013072,2]
[395145931,1764477501152,-166.27919891,0.00013172,2]
[395145932,1764477502483,4350.73539434,0.00013072,2]
[395145933,1764477502505,6692.23440566,0.00013072,2]
[395145934,1764477503422,-155.51444591,0.00013172,2]
[395145935,1764477505534,-500.0,0.00013172,2]
[395145942,1764477509806,-260.19658991,0.00013172,2]
[395145943,1764477512097,-310.17066459,0.00013172,2]
[395145947,1764477513075,-180.12476308,0.00013172,2]
[395145959,1764477514580,-212.0,0.00013172,2]
[395145973,1764477516415,-287.47606149,0.00013172,2]
[395145974,1764477519010,-197.99417815,0.00013172,2]
[395145980,1764477530141,-160.98795251,0.00013172,2]
[395145986,1764477532108,-215.92294338,0.00013172,2]
[395145987,1764477534667,-500.0,0.00013172,2]
[395145988,1764477536836,-187.42409288,0.00013172,2]
[395145989,1764477538330,-254.9048155,0.00013172,2]
[395145992,1764477540323,-280.44853211,0.00013172,2]
[395145993,1764477541814,-393.53387593,0.00013172,2]
[395145994,1764477541946,150.0,0.00013171,2]
[395146010,1764477601214,1200.0,0.00013171,2]
[395146011,1764477601251,300.0,0.00013171,2]
[395146013,1764477601409,300.0,0.00013171,2]
[395146025,1764477604154,457.45219072,0.00013072,2]
[395146050,1764477622767,900.32340362,0.00013072,2]
[395146051,1764477622792,10000.01,0.00013072,2]
[395146052,1764477622815,3241.35479638,0.00013072,2]
[395146057,1764477636121,436.59321326,0.00013171,2]
[395146059,1764477641237,1000.0,0.00013072,2]
[395146067,1764477658142,154.983,0.00025,120]
[395146069,1764477662326,300.0,0.00013171,2]
[395146078,1764477677857,2663.2898,0.00013072,2]
[395146080,1764477685130,2313.8041,0.00013072,2]
[395146083,1764477692781,44.96809036,0.00012908,2]
[395146084,1764477692805,3056.76490964,0.00012908,2]
[395146085,1764477692841,176.71,0.00012908,2]
[395146087,1764477721592,300.0,0.00013171,2]
[395146088,1764477721866,150.0,0.00013171,2]
[395146089,1764477724076,156.84327134,0.00013171,2]
[395146090,1764477728898,312.40826753,0.00013171,2]
[395146091,1764477770145,-198.18696423,0.00013172,2]
[395146092,1764477784341,500.0,0.00013072,2]
[395146093,1764477790463,3258.4666,0.00013072,2]
[395146095,1764477829807,2088.81695149,0.00013072,2]
[395146096,1764477829831,4959.88795502,0.00013072,2]
[395146099,1764477840384,5040.12204498,0.00013072,2]
[395146100,1764477840407,8479.72549714,0.00013072,2]
[395146105,1764477886900,431.99340293,0.00013072,2]
[395146107,1764477901234,300.0,0.00013171,2]
[395146108,1764477901285,788.29109993,0.00013171,2]
[395146110,1764477901672,411.70890007,0.00013171,2]
[395146111,1764477901887,150.0,0.00013171,2]
[395146125,1764477920199,-403.50816133,0.00013172,2]
[395146127,1764477932125,170.0,0.00022,30]
[395146129,1764477961654,300.0,0.00013171,2]
[395146130,1764477962395,9138.30109993,0.00013072,2]
[395146131,1764477962420,10000.01,0.00013072,2]
[395146132,1764477962444,3778.97990007,0.00013072,2]
[395146150,1764478021313,300.0,0.00013171,2]
[395146151,1764478055206,-200.7170109,0.00013172,2]
[395146152,1764478058188,-182.9108029,0.00013172,2]
[395146154,1764478059944,-254.69291239,0.00013172,2]
[395146155,1764478063669,-334.30826152,0.00013172,2]
[395146160,1764478066154,-221.97219332,0.00013172,2]
[395146161,1764478067983,-181.39330656,0.00013172,2]
[395146162,1764478070764,-272.96386,0.00013172,2]
[395146163,1764478072817,-238.36710413,0.00013172,2]
[395146164,1764478074966,-410.77630252,0.00013172,2]
[395146165,1764478081890,150.0,0.00013171,2]
[395146166,1764478085210,-198.57145067,0.00013172,2]
[395146167,1764478088475,-558.19147057,0.00013172,2]
[395146169,1764478089934,-213.31346868,0.00013172,2]
[395146171,1764478091811,-198.98171055,0.00013172,2]
[395146173,1764478093307,-348.44471626,0.00013172,2]
[395146175,1764478095326,-177.90352714,0.00013172,2]
[395146177,1764478097931,-485.73057035,0.00013172,2]
[395146178,1764478103954,-303.9355801,0.00013172,2]
[395146179,1764478106068,-620.3746,0.00013172,2]
[395146181,1764478108040,-239.84461896,0.00013172,2]
[395146182,1764478109478,-260.88026284,0.00013172,2]
[395146183,1764478110935,-288.79778732,0.00013172,2]
[395146184,1764478113020,-163.73263199,0.00013172,2]
[395146185,1764478115310,-181.39330656,0.00013172,2]
[395146186,1764478117685,-181.15641038,0.00013172,2]
[395146187,1764478119824,-159.9155177,0.00013172,2]
[395146188,1764478122068,-296.55391083,0.00013172,2]
[395146189,1764478123671,-254.7146204,0.00013172,2]
[395146191,1764478130775,-228.56036305,0.00013172,2]
[395146192,1764478132746,5771.03009993,0.00013072,2]
[395146193,1764478132771,1452.59150007,0.00013072,2]
[395146194,1764478141575,300.0,0.00013171,2]
[395146216,1764478160120,8247.41849993,0.00013072,2]
[395146217,1764478160148,10000.01,0.00013072,2]
[395146218,1764478160175,10000.01,0.00013072,2]
[395146219,1764478160202,10000.01,0.00013072,2]
[395146220,1764478160230,10000.01,0.00013072,2]
[395146221,1764478160256,10000.01,0.00013072,2]
[395146222,1764478160284,10000.01,0.00013072,2]
[395146223,1764478160308,10000.01,0.00013072,2]
[395146224,1764478160335,10000.01,0.00013072,2]
[395146225,1764478160360,10000.01,0.00013072,2]
[395146338,1764478201504,1200.0,0.00013071,2]
[395146339,1764478201702,300.0,0.00013071,2]
[395146340,1764478203125,493.74148101,0.00016202,15]
[395146344,1764478217146,8500.01,0.00012972,2]
[395146345,1764478217171,1164.37396201,0.00012972,2]
[395146347,1764478218484,533.88194831,0.00012972,2]
[395146348,1764478225507,5569.832145,0.00013006,2]
[395146359,1764478232145,-343.5039996,0.00013072,2]
[395146360,1764478232158,-705.05,0.00013072,2]
[395146361,1764478232271,218.68578727,0.00013071,2]
[395146362,1764478232319,169.24167411,0.00013071,2]
[395146363,1764478232341,-1702.31561347,0.00013072,2]
[395146383,1764478232749,-5630.17713717,0.00013072,2]
[395146385,1764478232762,-301.56812754,0.00013072,2]
[395146391,1764478232810,-1046.51182598,0.00013072,2]
[395146393,1764478233236,500.0,0.00013071,2]
[395146394,1764478233335,500.0,0.00013071,2]
[395146395,1764478233423,500.0,0.00013071,2]
[395146396,1764478233485,500.0,0.00013071,2]
[395146397,1764478233566,343.9944833,0.00013071,2]
[395146398,1764478233600,156.0055167,0.00013071,2]
[395146399,1764478233699,500.0,0.00013071,2]
[395146400,1764478233769,500.0,0.00013071,2]
[395146401,1764478233855,500.0,0.00013071,2]
[395146402,1764478233961,500.0,0.00013071,2]
[395146403,1764478234015,500.0,0.00013071,2]
[395146404,1764478234089,500.0,0.00013071,2]
[395146405,1764478234220,500.0,0.00013071,2]
[395146406,1764478234306,500.0,0.00013071,2]
[395146407,1764478234379,500.0,0.00013071,2]
[395146408,1764478234438,584.36441445,0.00013071,2]
[395146409,1764478234498,500.0,0.00013071,2]
[395146410,1764478234554,500.0,0.00013071,2]
[395146411,1764478234625,500.0,0.00013071,2]
[395146412,1764478234702,500.0,0.00013071,2]
[395146413,1764478234758,500.0,0.00013071,2]
[395146414,1764478234816,500.0,0.00013071,2]
[395146415,1764478235248,500.0,0.00013071,2]
[395146416,1764478235317,500.0,0.00013071,2]
[395146417,1764478235407,500.0,0.00013071,2]
[395146423,1764478239261,-652023.36479631,0.00013072,2]
[395146424,1764478239274,-18427.9111,0.00013072,2]
[395146425,1764478239284,-2500.0,0.00013072,2]
[395146426,1764478239293,-377.99422759,0.00013072,2]
[395146427,1764478239303,-1000.0,0.00013172,2]
[395146428,1764478239313,-250.0,0.00013172,2]
[395146429,1764478239322,-200.0,0.00013172,2]
[395146430,1764478239332,-250.0,0.0001318,2]
[395146431,1764478239341,-4630.98,0.00013211,2]
[395146432,1764478239351,-200.0,0.00013304,2]
[395146433,1764478239360,-500.0,0.0001332,2]
[395146434,1764478239370,-9664.383962,0.00013408,2]
[395146435,1764478239379,-200.0,0.00013437,2]
[395146436,1764478239389,-204.56,0.00013449,2]
[395146437,1764478239398,-1000.0,0.00013487,2]
[395146438,1764478239407,-2954.41,0.00013487,2]
[395146439,1764478239417,-999.99,0.00013487,2]
[395146440,1764478239427,-150.99,0.00013487,2]
[395146441,1764478239437,-150.99,0.00013487,2]
[395146442,1764478239446,-9999.99,0.00013487,2]
[395146443,1764478239455,-3511.55,0.00013497,2]
[395146444,1764478239464,-1428.12,0.00013497,2]
[395146445,1764478239473,-12863.26,0.00013506,2]
[395146446,1764478239482,-549.99,0.00013506,2]
[395146447,1764478239492,-299.99,0.00013506,2]
[395146448,1764478239501,-9999.99,0.00013506,2]
[395146449,1764478239510,-200.0,0.00013571,2]
[395146450,1764478239519,-377.99422755,0.00013619,2]
[395146451,1764478239529,-508.7696699,0.00013698,2]
[395146452,1764478239538,-514.41914055,0.00013698,2]
[395146453,1764478239548,-515.50675276,0.00013698,2]
[395146454,1764478239557,-500.0,0.00013698,2]
[395146455,1764478239566,-500.0,0.00013698,2]
[395146456,1764478239575,-500.0,0.00013698,2]
[395146457,1764478239584,-500.0,0.00013698,2]
[395146458,1764478239594,-500.0,0.00013698,2]
[395146459,1764478239603,-219.97289193,0.00013698,2]
[395146460,1764478239612,-500.0,0.00013698,2]
[395146461,1764478239621,-500.0,0.00013698,2]
[395146462,1764478239630,-500.0,0.00013698,2]
[395146463,1764478239639,-500.0,0.00013698,2]
[395146464,1764478239648,-500.0,0.00013698,2]
[395146465,1764478239658,-500.0,0.00013698,2]
[395146466,1764478239667,-500.0,0.00013698,2]
[395146467,1764478239678,-614.92249161,0.00013698,2]
[395146468,1764478239687,-500.0,0.00013698,2]
[395146469,1764478239697,-500.0,0.00013698,2]
[395146470,1764478239708,-500.0,0.00013698,2]
[395146471,1764478239717,-500.0,0.00013698,2]
[395146472,1764478239726,-500.0,0.00013698,2]
[395146473,1764478239735,-500.0,0.00013698,2]
[395146474,1764478239744,-500.0,0.00013698,2]
[395146475,1764478239753,-500.0,0.00013698,2]
[395146476,1764478239762,-641.47208077,0.00013698,2]
[395146477,1764478239772,-500.0,0.00013698,2]
[395146478,1764478239781,-500.0,0.00013698,2]
[395146479,1764478239789,-500.0,0.00013698,2]
[395146480,1764478239799,-500.0,0.00013698,2]
[395146481,1764478239808,-500.0,0.00013698,2]
[395146482,1764478239817,-181.30501265,0.00013698,2]
[395146483,1764478239826,-500.0,0.00013698,2]
[395146484,1764478239835,-500.0,0.00013698,2]
[395146485,1764478239844,-500.0,0.00013698,2]
[395146486,1764478239853,-500.0,0.00013698,2]
[395146487,1764478239862,-500.0,0.00013698,2]
[395146488,1764478239871,-500.0,0.00013698,2]
[395146489,1764478239880,-500.0,0.00013698,2]
[395146490,1764478239889,-500.0,0.00013698,2]
[395146491,1764478239898,-500.0,0.00013698,2]
[395146492,1764478239910,-500.0,0.00013698,2]
[395146493,1764478239919,-500.0,0.00013698,2]
[395146494,1764478239928,-500.0,0.00013698,2]
[395146495,1764478239938,-500.0,0.00013698,2]
[395146497,1764478239947,-500.0,0.00013698,2]
[395146499,1764478239956,-500.0,0.00013698,2]
[395146501,1764478239964,-500.0,0.00013698,2]
[395146503,1764478239974,-500.0,0.00013698,2]
[395146505,1764478239983,-510.07916645,0.00013698,2]
[395146507,1764478239992,-500.0,0.00013698,2]
[395146509,1764478240001,-512.90563522,0.00013698,2]
[395146510,1764478240011,-500.0,0.00013698,2]
[395146511,1764478240020,-500.0,0.00013698,2]
[395146513,1764478240029,-500.0,0.00013698,2]
[395146515,1764478240038,-312.82118125,0.00013698,2]
[395146516,1764478240047,-500.59985249,0.00013698,2]
[395146517,1764478240056,-545.90394043,0.00013698,2]
[395146518,1764478240065,-150.0,0.00013698,2]
[395146519,1764478240074,-162.44987593,0.00013698,2]
[395146520,1764478240085,-150.0,0.00013698,2]
[395146521,1764478240095,-150.0,0.00013698,2]
[395146522,1764478240104,-151.84362429,0.00013698,2]
[395146523,1764478240113,-158.23743081,0.00013698,2]
[395146524,1764478240123,-500.0,0.00013698,2]
[395146525,1764478240132,-150.0,0.00013698,2]
[395146526,1764478240142,-150.0,0.00013698,2]
[395146527,1764478240151,-150.0,0.00013698,2]
[395146528,1764478240160,-150.0,0.00013698,2]
[395146529,1764478240170,-150.0,0.00013698,2]
[395146530,1764478240179,-150.0,0.00013698,2]
[395146531,1764478240188,-169.4397301,0.00013698,2]
[395146532,1764478240197,-506.86835685,0.00013698,2]
[395146533,1764478240206,-150.0,0.00013698,2]
[395146534,1764478240216,-500.0,0.00013698,2]
[395146535,1764478240225,-500.0,0.00013698,2]
[395146536,1764478240234,-500.0,0.00013698,2]
[395146537,1764478240243,-500.0,0.00013698,2]
[395146538,1764478240252,-500.0,0.00013698,2]
[395146539,1764478240263,-150.0,0.00013698,2]
[395146540,1764478240273,-150.0,0.00013698,2]
[395146541,1764478240282,-500.0,0.00013698,2]
[395146542,1764478240291,-461.0,0.00013698,2]
[395146543,1764478240300,-160.73087474,0.00013698,2]
[395146544,1764478240310,-500.0,0.00013698,2]
[395146545,1764478240319,-483.0,0.00013698,2]
[395146546,1764478240329,-500.0,0.00013698,2]
[395146547,1764478240338,-500.0,0.00013698,2]
[395146548,1764478240347,-150.0,0.00013698,2]
[395146549,1764478240356,-158.73149787,0.00013698,2]
[395146550,1764478240366,-500.0,0.00013698,2]
[395146551,1764478240375,-500.0,0.00013698,2]
[395146552,1764478240385,-150.0,0.00013698,2]
[395146553,1764478240394,-500.0,0.00013698,2]
[395146554,1764478240403,-580.71,0.00013698,2]
[395146555,1764478240412,-600.0,0.00013699,2]
[395146556,1764478240421,-255.07516903,0.00013699,2]
[395146557,1764478240430,-151.21309349,0.00013699,2]
[395146558,1764478240439,-500.0,0.00013699,2]
[395146559,1764478240448,-500.0,0.00013699,2]
[395146560,1764478240457,-500.0,0.00013699,2]
[395146561,1764478240467,-500.0,0.00013699,2]
[395146562,1764478240476,-500.0,0.00013699,2]
[395146563,1764478240486,-500.0,0.00013699,2]
[395146564,1764478240495,-368.48677015,0.00013699,2]
[395146565,1764478240504,-200.0,0.00013707,2]
[395146566,1764478240513,-293.57592219,0.00013767,2]
[395146567,1764478240523,-204.56,0.00013834,2]
[395146568,1764478240532,-155.60555311,0.00013835,2]
[395146569,1764478240542,-150.0,0.00013835,2]
[395146570,1764478240551,-150.0,0.00013835,2]
[395146571,1764478240560,-547.92670967,0.00013835,2]
[395146572,1764478240570,-150.0,0.00013835,2]
[395146573,1764478240579,-242.55724109,0.00013835,2]
[395146574,1764478240588,-152.9703148,0.00013835,2]
[395146575,1764478240598,-150.49016812,0.00013835,2]
[395146576,1764478240607,-155.31226656,0.00013835,2]
[395146577,1764478240616,-150.0,0.00013835,2]
[395146578,1764478240626,-150.0,0.00013835,2]
[395146579,1764478240635,-510.24253861,0.00013835,2]
[395146580,1764478240644,-500.0,0.00013835,2]
[395146581,1764478240653,-500.0,0.00013835,2]
[395146582,1764478240663,-158.36983684,0.00013835,2]
[395146583,1764478240673,-150.0,0.00013835,2]
[395146584,1764478240682,-500.0,0.00013835,2]
[395146585,1764478240691,-461.0,0.00013835,2]
[395146586,1764478240701,-526.11568986,0.00013835,2]
[395146587,1764478240710,-483.0,0.00013835,2]
[395146588,1764478240719,-500.0,0.00013835,2]
[395146589,1764478240728,-366.472595,0.00013835,2]
[395146590,1764478240737,-500.0,0.00013835,2]
[395146591,1764478240746,-500.0,0.00013835,2]
[395146592,1764478240755,-150.0,0.00013835,2]
[395146593,1764478240765,-500.0,0.00013835,2]
[395146594,1764478240774,-41206.09,0.00013837,2]
[395146595,1764478240783,-9664.383962,0.00013845,2]
[395146596,1764478240792,-166.66,0.00013854,2]
[395146597,1764478240802,-200.0,0.00013967,2]
[395146598,1764478240811,-236.72605588,0.00013972,2]
[395146599,1764478240820,-207.68168826,0.00013972,2]
[395146600,1764478240829,-164.06191743,0.00013972,2]
[395146601,1764478240839,-150.0,0.00013972,2]
[395146603,1764478240849,-150.0,0.00013972,2]
[395146604,1764478240858,-500.0,0.00013972,2]
[395146605,1764478240868,-304.70213871,0.00013972,2]
[395146606,1764478240877,-150.0,0.00013972,2]
[395146608,1764478240887,-500.0,0.00013972,2]
[395146609,1764478240897,-461.0,0.00013972,2]
[395146610,1764478240906,-483.0,0.00013972,2]
[395146611,1764478240916,-500.0,0.00013972,2]
[395146612,1764478240926,-500.0,0.00013972,2]
[395146613,1764478240935,-500.0,0.00013972,2]
[395146614,1764478240944,-150.0,0.00013972,2]
[395146615,1764478240953,-500.0,0.00013972,2]
[395146616,1764478240962,-580.71,0.00013972,2]
[395146617,1764478240971,-600.0,0.00013973,2]
[395146618,1764478240980,-1072.21727013,0.00013999,2]
[395146619,1764478240989,-202.65186002,0.00014109,2]
[395146620,1764478240999,-150.0,0.00014109,2]
[395146621,1764478241008,-500.0,0.00014109,2]
[395146622,1764478241017,-150.0,0.00014109,2]
[395146623,1764478241026,-500.0,0.00014109,2]
[395146624,1764478241035,-461.0,0.00014109,2]
[395146625,1764478241044,-483.0,0.00014109,2]
[395146626,1764478241053,-275.87741623,0.00014109,2]
[395146627,1764478241063,-500.0,0.00014109,2]
[395146628,1764478241072,-500.0,0.00014109,2]
[395146629,1764478241081,-150.54642357,0.00014109,2]
[395146630,1764478241090,-500.0,0.00014109,2]
[395146631,1764478241101,-377.99422755,0.00014166,2]
[395146632,1764478241111,-204.56,0.00014218,2]
[395146633,1764478241123,-166.66,0.00014237,2]
[395146634,1764478241132,-201.45110725,0.00014246,2]
[395146635,1764478241141,-500.0,0.00014246,2]
[395146636,1764478241150,-204.87473357,0.00014246,2]
[395146637,1764478241159,-500.0,0.00014246,2]
[395146638,1764478241168,-461.0,0.00014246,2]
[395146639,1764478241178,-483.0,0.00014246,2]
[395146640,1764478241187,-500.0,0.00014246,2]
[395146641,1764478241197,-500.0,0.00014246,2]
[395146642,1764478241206,-500.0,0.00014246,2]
[395146643,1764478241215,-580.71,0.00014246,2]
[395146644,1764478241224,-600.0,0.00014247,2]
[395146645,1764478241234,-255.0,0.00014277,2]
[395146646,1764478241244,-9664.383962,0.00014281,2]
[395146647,1764478241254,-166.66,0.00014311,2]
[395146648,1764478241266,-420.0,0.00014333,2]
[395146649,1764478241275,-1680.0,0.00014378,2]
[395146650,1764478241285,-156.42794575,0.00014383,2]
[395146651,1764478241295,-500.0,0.00014383,2]
[395146652,1764478241305,-461.0,0.00014383,2]
[395146653,1764478241315,-483.0,0.00014383,2]
[395146654,1764478241328,-500.0,0.00014383,2]
[395146655,1764478241341,-500.0,0.00014383,2]
[395146656,1764478241352,-500.0,0.00014383,2]
[395146657,1764478241363,-300.0,0.00014489,2]
[395146658,1764478241373,-300.0,0.00014489,2]
[395146659,1764478241383,-300.0,0.00014489,2]
[395146660,1764478241392,-150.39058857,0.00014489,2]
[395146661,1764478241402,-195.0,0.00014489,2]
[395146662,1764478241411,-250.0,0.00014489,2]
[395146663,1764478241421,-195.0,0.00014489,2]
[395146664,1764478241430,-195.0,0.00014489,2]
[395146665,1764478241439,-195.0,0.00014489,2]
[395146666,1764478241448,-500.0,0.0001452,2]
[395146667,1764478241458,-461.0,0.0001452,2]
[395146668,1764478241466,-483.0,0.0001452,2]
[395146669,1764478241475,-500.0,0.0001452,2]
[395146670,1764478241484,-500.0,0.0001452,2]
[395146671,1764478241493,-500.0,0.0001452,2]
[395146672,1764478241502,-580.71,0.0001452,2]
[395146673,1764478241512,-558.23,0.00014521,2]
[395146674,1764478241521,-151.0,0.00014521,2]
[395146675,1764478241530,-500.0,0.00014536,2]
[395146676,1764478241539,-166.66,0.00014536,2]
[395146677,1764478241548,-204.56,0.00014602,2]
[395146679,1764478241557,-296.85092303,0.00014657,2]
[395146680,1764478241567,-461.0,0.00014657,2]
[395146681,1764478241576,-483.0,0.00014657,2]
[395146682,1764478241586,-500.0,0.00014657,2]
[395146683,1764478241595,-500.0,0.00014657,2]
[395146684,1764478241604,-217.04067786,0.00014657,2]
[395146685,1764478241613,-676.29417544,0.00014682,2]
[395146686,1764478241623,-377.99422755,0.00014713,2]
[395146687,1764478241633,-9664.383962,0.00014718,2]
[395146688,1764478241642,-166.66,0.00014769,2]
[395146689,1764478241651,-461.0,0.00014794,2]
[395146690,1764478241660,-483.0,0.00014794,2]
[395146691,1764478241670,-500.0,0.00014794,2]
[395146692,1764478241679,-500.0,0.00014794,2]
[395146693,1764478241688,-580.71,0.00014794,2]
[395146694,1764478241697,-166.66,0.00014836,2]
[395146695,1764478241706,-225.29829185,0.000149,2]
[395146696,1764478241715,-461.0,0.00014931,2]
[395146697,1764478241724,-483.0,0.00014931,2]
[395146698,1764478241733,-500.0,0.00014931,2]
[395146699,1764478241742,-500.0,0.00014931,2]
[395146700,1764478241751,-500.0,0.00014999,2]
[395146701,1764478241763,-500.0,0.00014999,2]
[395146702,1764478241772,-500.0,0.00014999,2]
[395146703,1764478241781,-500.0,0.00014999,2]
[395146704,1764478241790,-500.0,0.00014999,2]
[395146705,1764478241799,-500.0,0.00014999,2]
[395146706,1764478241809,-500.0,0.00014999,2]
[395146707,1764478241818,-500.0,0.00014999,2]
[395146708,1764478241827,-500.0,0.00014999,2]
[395146709,1764478241837,-500.0,0.00014999,2]
[395146710,1764478241846,-500.0,0.00014999,2]
[395146711,1764478241855,-170.0,0.00015,2]
[395146712,1764478241865,-461.0,0.00015068,2]
[395146713,1764478241874,-483.0,0.00015068,2]
[395146714,1764478241884,-500.0,0.00015068,2]
[395146715,1764478241893,-500.0,0.00015068,2]
[395146716,1764478241902,-156.75181041,0.00015068,2]
[395146717,1764478241912,-580.75127705,0.00015068,2]
[395146718,1764478241921,-151.0,0.00015069,2]
[395146719,1764478241930,-166.66,0.00015136,2]
[395146720,1764478241939,-1000.0,0.00015173,2]
[395146721,1764478241948,-461.0,0.00015205,2]
[395146722,1764478241957,-483.0,0.00015205,2]